bitfinex/quotes_SOLUSD_20220128
["timestamp","ask_amount","ask_price","bid_price","bid_amount"]
[1643329404164,0.25,89.877,89.771,49.9889]
[1643329404365,0.25,89.877,89.772,0.1]
[1643329404763,23.8883877,89.877,89.773,37.09841623]
[1643329404963,23.8883877,89.877,89.774,0.1]
[1643329405268,23.8883877,89.877,89.774,2.3349093]
[1643329405462,23.8883877,89.877,89.775,1.9849093]
[1643329405863,6.0,89.867,89.774,0.35]
[1643329406064,30.6475,89.866,89.774,0.35]
[1643329406265,30.8975,89.866,89.774,0.35]
[1643329408067,30.8975,89.866,89.774,0.1]
[1643329408270,30.8975,89.866,89.774,0.35]
[1643329408969,112.1,89.865,89.774,0.35]
[1643329409372,112.1,89.853,89.774,0.35]
[1643329409572,6.0,89.843,89.774,0.35]
[1643329409772,0.25,89.842,89.774,0.35]
[1643329410173,6.0,89.843,89.775,1.9849093]
[1643329410375,23.728,89.853,89.776,0.25]
[1643329410574,78.9771,89.888,89.776,0.25]
[1643329410772,24.3659,89.877,89.777,1.9849093]
[1643329410973,6.0,89.868,89.777,2.0849093]
[1643329411185,6.0,89.867,89.778,0.25]
[1643329411387,22.84952371,89.866,89.778,2.2349093]
[1643329411590,22.84952371,89.866,89.778,112.35]
[1643329411789,22.84952371,89.866,89.779,2.0849093]
[1643329412188,22.84952371,89.866,89.78,0.25]
[1643329412388,0.25,89.865,89.78,0.25]
[1643329412687,0.25,89.865,89.781,1.9849093]
[1643329413089,23.3069,89.865,89.782,0.25]
[1643329413689,23.3069,89.865,89.789,47.30604751]
[1643329413888,23.3069,89.865,89.79,0.1]
[1643329414089,6.0,89.855,89.79,0.1]
[1643329414389,0.25,89.854,89.79,0.1]
[1643329414589,6.0,89.855,89.79,0.1]
[1643329415790,0.25,89.854,89.79,0.1]
[1643329416196,1.53537639,89.886,89.791,1.9849093]
[1643329416394,1.53537639,89.891,89.791,1.9849093]
[1643329416593,1.53537639,89.891,89.792,0.25]
[1643329416793,1.53537639,89.891,89.802,112.1]
[1643329416994,1.53537639,89.898,89.803,86.49820674]
[1643329417195,1.53537639,89.898,89.804,112.1]
[1643329417396,31.05178096,89.906,89.806,1.50216198]
[1643329417596,29.51640457,89.906,89.808,1.50216198]
[1643329417898,29.51640457,89.906,89.814,6.0]
[1643329418095,29.51640457,89.906,89.809,0.25]
[1643329418096,22.6662,89.905,89.809,13.19066241]
[1643329418295,22.6662,89.905,89.815,1.9849093]
[1643329418694,0.25,89.904,89.816,0.25]
[1643329419097,0.25,89.904,89.817,1.9849093]
[1643329419299,0.25,89.904,89.818,40.64268064]
[1643329419699,0.25,89.904,89.819,1.9849093]
[1643329419899,0.25,89.904,89.82,0.25]
[1643329421207,0.25,89.904,89.819,0.25]
[1643329421403,6.0,89.895,89.819,0.25]
[1643329421601,6.0,89.892,89.819,0.25]
[1643329421803,2.40794118,89.891,89.819,0.25]
[1643329422804,2.15794118,89.891,89.819,0.25]
[1643329423207,2.15794118,89.891,89.818,40.39268064]
[1643329424207,0.25,89.89,89.818,42.37758994]
[1643329424608,0.25,89.89,89.818,40.39268064]
[1643329425008,6.0,89.881,89.818,40.39268064]
[1643329425409,0.25,89.89,89.818,40.39268064]
[1643329425611,0.25,89.88,89.818,40.39268064]
[1643329425810,0.25,89.89,89.819,0.25]
[1643329426209,0.25,89.89,89.82,1.99129736]
[1643329426611,6.0,89.894,89.818,40.39268064]
[1643329426810,0.25,89.893,89.819,0.25]
[1643329427009,0.25,89.893,89.818,40.39268064]
[1643329428009,6.25,89.893,89.818,40.39268064]
[1643329428213,6.0,89.893,89.818,40.39268064]
[1643329428411,0.25,89.892,89.818,40.39268064]
[1643329428913,0.25,89.892,89.819,0.25]
[1643329429512,0.25,89.893,89.819,0.25]
[1643329429712,6.0,89.894,89.82,1.99129736]
[1643329430112,6.0,89.894,89.821,0.25]
[1643329431316,0.25,89.893,89.821,0.25]
[1643329431711,0.25,89.893,89.819,0.25]
[1643329432113,1.53537639,89.909,89.819,0.25]
[1643329432316,1.53537639,89.911,89.82,1.99129736]
[1643329432515,1.53537639,89.923,89.82,1.99129736]
[1643329432714,1.53537639,89.928,89.83,6.0]
[1643329432916,1.53537639,89.928,89.83,22.05]
[1643329433114,1.53537639,89.933,89.831,8.24129736]
[1643329433321,1.53537639,89.935,89.832,43.40193577]
[1643329433615,1.53537639,89.933,89.832,79.25538624]
[1643329433815,24.4803103,89.934,89.833,13.44705047]
[1643329434015,0.25,89.932,89.833,13.44705047]
[1643329434213,0.25,89.933,89.834,1.99129736]
[1643329434414,0.25,89.933,89.843,6.0]
[1643329434615,6.0,89.93,89.844,29.8513]
[1643329434814,0.25,89.929,89.845,0.25]
[1643329435015,0.25,89.929,89.845,2.23832733]
[1643329435215,0.25,89.929,89.846,37.80139174]
[1643329435419,0.25,89.929,89.846,39.78971907]
[1643329435617,0.25,89.929,89.847,2.23832733]
[1643329436018,0.25,89.929,89.848,1.98832733]
[1643329437642,0.25,89.929,89.849,0.25]
[1643329438043,0.25,89.929,89.85,1.98832733]
[1643329438250,0.25,89.929,89.851,0.25]
[1643329438442,0.25,89.929,89.85,1.98832733]
[1643329439245,6.0,89.935,89.85,1.98832733]
[1643329439444,6.0,89.935,89.851,112.1]
[1643329439945,6.0,89.935,89.852,2.23832733]
[1643329440145,29.03478792,89.934,89.852,2.23832733]
[1643329440347,29.03478792,89.934,89.853,1.98832733]
[1643329440545,0.25,89.933,89.853,1.98832733]
[1643329440745,24.566,89.933,89.854,0.25]
[1643329441251,24.566,89.933,89.853,1.98832733]
[1643329441547,6.0,89.923,89.854,0.25]
[1643329441746,0.25,89.922,89.853,1.98832733]
[1643329441944,0.25,89.922,89.85,11.20575311]
[1643329442145,0.25,89.922,89.846,37.80139174]
[1643329442744,0.25,89.922,89.847,1.98832733]
[1643329443245,0.25,89.922,89.848,0.25]
[1643329447351,24.316,89.933,89.849,1.98832733]
[1643329447551,0.25,89.922,89.859,6.0]
[1643329447752,0.25,89.922,89.86,0.25]
[1643329447951,0.25,89.922,89.86,2.23832733]
[1643329448352,0.25,89.922,89.861,1.98832733]
[1643329448756,0.25,89.931,89.862,0.25]
[1643329449057,24.316,89.933,89.862,0.25]
[1643329449256,16.05,89.97,89.863,1.98832733]
[1643329449455,3.08007899,89.985,89.871,6.0]
[1643329449656,3.08007899,90.004,89.873,6.0]
[1643329449855,27.09317899,90.017,89.88,6.0]
[1643329450055,29.89637473,90.016,89.89,16.05]
[1643329450267,54.32908112,90.016,89.891,47.9443]
[1643329450457,54.32908112,90.016,89.9,6.0]
[1643329450655,24.43270639,90.015,89.91,16.05]
[1643329450857,6.0,90.006,89.911,62.43718508]
[1643329451068,24.43270639,90.014,89.921,6.0]
[1643329451256,0.25,90.013,89.922,0.25]
[1643329451458,29.89637473,90.016,89.922,2.23832733]
[1643329451760,22.9526,90.029,89.923,1.98832733]
[1643329451959,22.9526,90.029,89.925,112.1]
[1643329452160,6.0,90.019,89.94,16.6743]
[1643329452360,6.0,90.019,89.941,0.25]
[1643329452762,28.5098654,90.018,89.941,56.95904551]
[1643329452967,28.5098654,90.018,89.942,1.98832733]
[1643329453362,28.5098654,90.018,89.943,0.25]
[1643329453760,28.5098654,90.018,89.944,1.98832733]
[1643329454162,28.5098654,90.018,89.945,0.25]
[1643329454366,28.5098654,90.018,89.92,16.05]
[1643329454563,112.1,90.007,89.918,1.98832733]
[1643329454763,0.25,90.006,89.88,16.05]
[1643329454970,6.0,89.997,89.865,46.9801]
[1643329455167,6.0,89.997,89.892,39.6629491]
[1643329455367,6.0,89.996,89.892,39.6629491]
[1643329455573,6.0,89.995,89.892,39.6629491]
[1643329455967,2.95669142,89.994,89.892,39.6629491]
[1643329456194,2.95669142,89.994,89.902,6.0]
[1643329456569,46.9769,90.028,89.91,6.0]
[1643329456974,6.0,90.008,89.903,1.98832733]
[1643329457172,6.0,90.008,89.911,1.98832733]
[1643329457370,46.9769,90.028,89.92,16.05]
[1643329457571,23.3665,90.017,89.922,39.62611439]
[1643329457775,23.3665,90.017,89.93,6.0]
[1643329457969,23.3665,90.017,89.923,2.23832733]
[1643329458371,23.3665,90.017,89.931,1.98832733]
[1643329458773,6.0,90.007,89.92,1.98832733]
[1643329458971,6.0,90.007,89.893,1.98832733]
[1643329459171,0.25,90.006,89.903,6.0]
[1643329459574,0.25,90.006,89.91,6.0]
[1643329459775,0.25,90.006,89.911,0.25]
[1643329460372,6.0,90.007,89.912,1.98832733]
[1643329460575,23.3665,90.017,89.912,1.98832733]
[1643329460774,23.3665,90.017,89.913,20.58413594]
[1643329460972,23.3665,90.017,89.922,6.0]
[1643329461173,23.3665,90.017,89.923,6.0]
[1643329461371,23.3665,90.017,89.924,0.25]
[1643329461573,23.3665,90.017,89.924,6.25]
[1643329461772,3.08007899,90.054,89.924,28.57246327]
[1643329461972,3.08007899,90.057,89.925,41.44283558]
[1643329462176,3.08007899,90.055,89.925,41.44283558]
[1643329462472,112.1,90.053,89.936,41.81093319]
[1643329462873,112.1,90.053,89.946,6.0]
[1643329463072,24.0736,90.052,89.947,6.0]
[1643329463274,0.25,90.027,89.95,16.05]
[1643329463473,6.0,90.018,89.95,16.05]
[1643329463705,6.0,90.042,89.96,6.0]
[1643329463877,0.25,90.017,89.96,6.0]
[1643329464073,0.25,90.017,89.961,6.25]
[1643329464276,31.65757866,90.041,89.961,6.0]
[1643329464577,6.0,90.031,89.962,0.25]
[1643329465275,6.0,90.03,89.962,0.25]
[1643329465675,6.0,90.03,89.95,0.25]
[1643329465875,31.92062742,90.064,89.963,1.98832733]
[1643329466079,48.0924,90.11,89.973,6.0]
[1643329466278,16.05,90.14,89.973,6.0]
[1643329466279,3.08007899,90.128,89.98,16.05]
[1643329466477,47.8066,90.139,89.981,112.1]
[1643329466678,47.8066,90.139,89.99,6.0]
[1643329466874,16.6648,90.13,90.0,16.05]
[1643329467078,32.7148,90.13,90.0,16.05]
[1643329467276,32.7148,90.13,90.001,0.25]
[1643329467477,6.0,90.12,90.001,2.23832733]
[1643329467677,22.976,90.119,90.001,0.25]
[1643329467878,28.976,90.119,90.001,0.25]
[1643329468176,6.0,90.11,90.002,1.98832733]
[1643329468376,7.54349675,90.109,90.003,0.25]
[1643329468577,6.0,90.099,90.003,0.25]
[1643329468779,6.0,90.099,90.004,1.98832733]
[1643329469177,6.0,90.099,90.005,0.25]
[1643329469378,24.7091,90.098,90.005,0.25]
[1643329469578,24.7091,90.098,90.006,1.98832733]
[1643329469779,0.25,90.097,90.007,0.25]
[1643329470679,6.0,90.088,90.007,0.25]
[1643329470878,0.25,90.087,90.007,0.25]
[1643329471478,0.25,90.087,90.001,0.25]
[1643329472080,24.8085,90.097,90.001,0.25]
[1643329472582,6.0,90.087,90.001,0.25]
[1643329472780,0.25,90.086,90.001,0.25]
[1643329473380,0.25,90.086,90.002,20.00025261]
[1643329473579,0.25,90.086,90.002,21.98857994]
[1643329473781,0.25,90.086,90.003,0.25]
[1643329473979,0.25,90.096,90.003,0.25]
[1643329474181,0.25,90.096,90.002,1.98832733]
[1643329474481,6.0,90.087,89.984,20.00025261]
[1643329474680,23.5052,90.086,89.991,0.25]
[1643329474882,23.7552,90.086,89.991,0.25]
[1643329475084,6.0,90.076,89.991,0.25]
[1643329475281,112.1,90.074,89.991,0.25]
[1643329475682,3.08007899,90.12,89.991,20.25025261]
[1643329475882,3.08007899,90.12,90.0,16.05]
[1643329476083,49.0499,90.128,90.01,6.0]
[1643329476283,49.0499,90.128,90.012,112.1]
[1643329476483,49.0499,90.128,90.011,88.21399488]
[1643329476683,30.31966661,90.127,90.011,42.38092221]
[1643329476984,6.0,90.117,89.997,1.98832733]
[1643329477184,112.1,90.116,89.944,16.8093]
[1643329477384,6.0,90.11,89.944,16.8093]
[1643329477588,16.05,90.1,89.94,16.05]
[1643329477785,16.05,90.09,89.972,45.57826606]
[1643329477984,16.05,90.08,89.972,45.57826606]
[1643329478184,24.2919,90.079,89.94,16.05]
[1643329478483,6.0,90.069,89.94,16.05]
[1643329478916,0.25,90.068,89.94,16.05]
[1643329479114,24.35876089,90.067,89.981,42.21554961]
[1643329479314,0.25,90.066,89.981,42.21554961]
[1643329479516,6.0,90.057,89.981,42.21554961]
[1643329479716,6.0,90.057,89.992,0.25]
[1643329480620,112.1,90.056,89.992,0.25]
[1643329481018,6.0,90.046,89.992,0.25]
[1643329481218,0.25,90.045,89.96,16.6699]
[1643329481417,0.25,90.045,89.958,22.5528]
[1643329482219,6.0,90.046,89.992,45.64815354]
[1643329482617,200.57,90.12,89.992,45.64815354]
[1643329482618,6.0,90.056,89.992,45.64815354]
[1643329482822,48.1439,90.107,90.002,6.0]
[1643329483016,48.1439,90.107,90.003,6.0]
[1643329483218,48.1439,90.107,90.003,1.98832733]
[1643329483616,48.1439,90.107,89.992,45.64815354]
[1643329483819,0.25,90.066,89.992,45.64815354]
[1643329484419,0.25,90.066,89.993,0.25]
[1643329484817,0.25,90.066,89.992,45.64815354]
[1643329485019,0.25,90.066,89.993,0.25]
[1643329485217,0.25,90.066,89.992,45.64815354]
[1643329485424,55.0,90.064,89.94,256.1331]
[1643329485621,0.25,90.066,89.904,3.02436095]
[1643329485819,0.25,90.066,89.879,4.55658401]
[1643329485820,6.0,90.054,89.9,16.05]
[1643329486022,16.05,90.04,89.88,16.05]
[1643329486428,6.0,90.03,89.881,45.1432624]
[1643329486623,0.95242557,90.02,89.881,45.1432624]
[1643329486823,113.30242557,90.02,89.881,45.1432624]
[1643329487025,90.18761834,90.019,89.881,45.1432624]
[1643329487225,21.55,90.01,89.881,45.1432624]
[1643329487428,23.2339,90.009,89.882,112.1]
[1643329487625,50.38483922,90.009,89.881,45.1432624]
[1643329487828,64.44604068,90.009,89.881,45.1432624]
[1643329488030,40.96214068,90.008,89.881,45.1432624]
[1643329488529,16.6902,89.98,89.85,16.05]
[1643329488737,16.05,89.97,89.842,47.6897]
[1643329488935,16.05,89.97,89.863,6.0]
[1643329489134,0.25,89.969,89.863,6.0]
[1643329489334,6.0,89.96,89.864,45.36841271]
[1643329489535,6.0,89.959,89.874,6.0]
[1643329489836,6.0,89.95,89.844,5.80823656]
[1643329490034,16.05,89.94,89.8,16.05]
[1643329490235,16.05,89.94,89.801,0.1]
[1643329490236,0.25,89.939,89.801,0.1]
[1643329490442,16.05,89.94,89.804,5.80930026]
[1643329490643,23.91,89.958,89.804,5.80930026]
[1643329490837,3.90656333,89.939,89.805,67.39244114]
[1643329491034,3.90656333,89.939,89.82,16.05]
[1643329491236,3.90656333,89.939,89.84,16.6933]
[1643329491439,3.90656333,89.939,89.841,39.24907828]
[1643329491834,0.25,89.938,89.841,39.24907828]
[1643329492334,0.25,89.938,89.842,0.25]
[1643329493034,0.25,89.938,89.851,6.0]
[1643329493436,0.25,89.938,89.852,0.25]
[1643329494438,6.0,89.929,89.852,0.25]
[1643329494635,0.25,89.928,89.851,6.0]
[1643329494838,6.0,89.92,89.816,5.80515974]
[1643329495035,6.0,89.92,89.826,6.0]
[1643329495235,0.25,89.919,89.82,6.0]
[1643329495642,11.87143254,89.919,89.824,6.0]
[1643329495842,16.7051,89.91,89.801,0.1]
[1643329496039,16.7051,89.91,89.75,55.6811]
[1643329496040,6.0,89.9,89.8,0.1]
[1643329496244,6.0,89.9,89.753,3.02436095]
[1643329496245,22.05,89.9,89.79,0.1]
[1643329496439,48.8431,89.899,89.767,0.1]
[1643329496639,64.84705401,89.899,89.767,0.1]
[1643329496839,6.0,89.889,89.767,36.27468907]
[1643329497038,17.5541339,89.879,89.768,0.1]
[1643329497462,6.0,89.869,89.768,0.1]
[1643329497640,16.715,89.85,89.768,0.1]
[1643329497839,5.65052546,89.849,89.768,0.1]
[1643329498140,6.0,89.839,89.768,0.1]
[1643329498342,0.25,89.838,89.768,0.1]
[1643329499542,22.8341,89.868,89.768,0.1]
[1643329499843,22.8341,89.868,89.768,0.35]
[1643329500040,6.0,89.858,89.768,0.35]
[1643329500440,21.18697146,89.857,89.768,0.35]
[1643329500642,27.18697146,89.857,89.768,0.35]
[1643329500850,0.25,89.856,89.768,0.35]
[1643329502042,6.0,89.85,89.768,0.35]
[1643329502242,6.0,89.847,89.768,0.35]
[1643329502445,55.6916,89.92,89.768,0.35]
[1643329502446,16.05,89.88,89.768,17.63044583]
[1643329502648,6.0,89.87,89.769,0.1]
[1643329503146,20.90881662,89.869,89.769,0.1]
[1643329503347,20.90881662,89.869,89.77,16.7052]
[1643329503546,6.0,89.859,89.771,0.1]
[1643329503946,112.1,89.858,89.768,0.1]
[1643329504147,121.30669142,89.858,89.751,0.1]
[1643329504446,121.30669142,89.858,89.69,200.57]
[1643329504447,49.91769142,89.857,89.724,0.1]
[1643329504647,22.7161,89.85,89.724,0.1]
[1643329504847,16.05,89.84,89.724,0.1]
[1643329505056,25.85874274,89.839,89.724,39.65924075]
[1643329505246,26.10874274,89.839,89.725,0.1]
[1643329505446,29.06543416,89.839,89.725,0.1]
[1643329505649,16.71099961,89.809,89.725,0.1]
[1643329506648,6.0,89.799,89.725,0.1]
[1643329506853,6.0,89.799,89.726,1.99105363]
[1643329507054,0.25,89.798,89.727,0.25]
[1643329507350,0.25,89.829,89.727,0.25]
[1643329507549,6.0,89.82,89.728,1.99105363]
[1643329507748,0.25,89.819,89.729,0.25]
[1643329507948,21.01188092,89.819,89.725,0.1]
[1643329508452,6.0,89.809,89.725,0.1]
[1643329508650,6.0,89.809,89.726,1.99105363]
[1643329508851,0.25,89.808,89.725,0.1]
[1643329509851,16.7167,89.85,89.726,1.99105363]
[1643329510052,13.39,89.85,89.736,6.0]
[1643329510251,13.39,89.87,89.74,13.39]
[1643329510451,13.39,89.86,89.741,0.1]
[1643329510655,6.0,89.829,89.726,0.1]
[1643329510954,27.76065567,89.828,89.725,0.35]
[1643329511150,28.01065567,89.828,89.725,0.35]
[1643329512054,27.76065567,89.828,89.725,0.35]
[1643329512257,13.39,89.87,89.726,1.99105363]
[1643329512478,11.62040231,89.876,89.76,16.7071]
[1643329512680,14.57709373,89.876,89.761,0.1]
[1643329512880,47.6078,89.884,89.761,2.34105363]
[1643329513083,19.07318917,89.883,89.762,37.07840893]
[1643329513280,19.07318917,89.883,89.763,0.25]
[1643329513482,19.07318917,89.883,89.763,0.35]
[1643329513680,6.0,89.873,89.763,0.35]
[1643329514281,6.0,89.873,89.764,1.99105363]
[1643329514682,6.0,89.873,89.765,0.25]
[1643329514880,6.0,89.873,89.77,13.39]
[1643329515081,6.0,89.873,89.771,0.1]
[1643329515281,19.07318917,89.883,89.771,2.34105363]
[1643329515481,19.07318917,89.883,89.771,2.09105363]
[1643329515482,2.95669142,89.872,89.771,2.09105363]
[1643329515682,13.39,89.87,89.763,0.1]
[1643329515882,13.39,89.87,89.763,0.35]
[1643329515883,3.88147019,89.861,89.763,0.35]
[1643329516083,6.0,89.851,89.763,0.35]
[1643329516282,0.25,89.85,89.763,0.1]
[1643329516782,2.95669142,89.849,89.763,0.1]
[1643329516981,19.07318917,89.838,89.763,0.1]
[1643329517382,0.25,89.837,89.763,0.1]
[1643329517582,6.0,89.828,89.763,0.1]
[1643329517782,0.25,89.827,89.763,0.1]
[1643329518184,6.0,89.828,89.763,0.35]
[1643329518385,0.25,89.827,89.763,0.35]
[1643329518589,0.25,89.827,89.763,0.1]
[1643329519286,0.25,89.837,89.763,0.1]
[1643329520288,13.39,89.87,89.763,0.35]
[1643329520486,30.1005,89.89,89.764,1.99105363]
[1643329520786,6.0,89.88,89.765,45.9162]
[1643329520986,6.0,89.888,89.78,13.39]
[1643329521195,6.0,89.888,89.781,112.2]
[1643329521385,20.13753214,89.887,89.782,0.1]
[1643329521585,6.0,89.877,89.782,0.1]
[1643329521786,0.25,89.876,89.782,0.1]
[1643329521987,6.25,89.876,89.782,0.1]
[1643329522285,6.25,89.876,89.782,0.35]
[1643329522689,6.0,89.876,89.782,0.35]
[1643329522889,6.0,89.874,89.783,1.99105363]
[1643329523090,35.9988,89.94,89.793,6.0]
[1643329523391,47.3693,89.921,89.8,13.39]
[1643329523690,47.3693,89.921,89.801,2.09105363]
[1643329523691,6.0,89.908,89.801,2.09105363]
[1643329523889,19.61292402,89.907,89.801,50.85995928]
[1643329524090,6.0,89.897,89.802,2.09105363]
[1643329524293,0.25,89.896,89.803,0.25]
[1643329524495,6.25,89.896,89.803,0.25]
[1643329525493,6.25,89.896,89.802,0.35]
[1643329526098,6.25,89.896,89.803,1.99105363]
[1643329526301,6.0,89.896,89.804,0.25]
[1643329526696,6.0,89.896,89.805,1.99105363]
[1643329526899,24.6172,89.906,89.821,36.36085085]
[1643329527296,24.6172,89.906,89.822,0.25]
[1643329527698,22.8564,89.939,89.822,0.25]
[1643329527898,22.8564,89.939,89.823,1.99105363]
[1643329528097,6.0,89.911,89.823,1.99105363]
[1643329528297,6.0,89.929,89.824,0.25]
[1643329528697,18.36629355,89.928,89.824,2.24105363]
[1643329529098,0.25,89.927,89.824,2.24105363]
[1643329529301,0.25,89.928,89.824,2.24105363]
[1643329529509,6.0,89.929,89.834,6.0]
[1643329529702,6.0,89.929,89.84,13.39]
[1643329529903,6.0,89.929,89.841,0.25]
[1643329530202,23.2703,89.958,89.841,51.25484149]
[1643329530203,6.0,89.948,89.841,51.25484149]
[1643329530401,6.0,89.948,89.842,114.09105363]
[1643329530701,6.0,89.948,89.842,1.99105363]
[1643329530903,0.25,89.947,89.843,0.25]
[1643329531101,6.0,89.946,89.843,0.25]
[1643329531300,0.25,89.945,89.851,6.0]
[1643329531505,22.13900322,89.945,89.842,0.25]
[1643329531902,6.0,89.935,89.842,0.25]
[1643329532102,6.0,89.93,89.842,0.25]
[1643329532304,0.25,89.929,89.843,1.99105363]
[1643329532502,6.0,89.935,89.844,0.25]
[1643329532904,6.0,89.97,89.85,16.6902]
[1643329533103,48.7987,89.979,89.86,19.39]
[1643329533104,6.0,89.969,89.86,19.39]
[1643329533306,6.0,89.969,89.861,0.25]
[1643329533507,6.0,89.969,89.861,41.49465985]
[1643329533704,6.0,89.969,89.87,6.0]
[1643329534008,6.0,89.969,89.871,6.25]
[1643329534204,6.0,89.969,89.871,8.24105363]
[1643329534406,111.9,89.999,89.88,6.0]
[1643329534606,111.9,89.999,89.89,13.39]
[1643329534805,17.54786287,90.006,89.891,0.25]
[1643329535004,17.54786287,90.006,89.901,38.46696155]
[1643329535206,50.20585775,90.03,89.901,38.46696155]
[1643329535405,50.20585775,90.03,89.902,112.35]
[1643329535607,6.0,90.02,89.912,118.1]
[1643329535805,6.0,90.02,89.92,13.39]
[1643329536004,6.0,90.022,89.93,6.0]
[1643329536210,16.19126654,90.021,89.931,148.99725453]
[1643329536404,16.19126654,90.021,89.931,149.24725453]
[1643329538007,16.19126654,90.021,89.941,6.0]
[1643329538506,16.19126654,90.021,89.942,0.25]
[1643329538908,0.25,90.02,89.942,0.25]
[1643329539907,6.0,90.022,89.942,0.25]
[1643329540107,6.0,90.022,89.943,1.99105363]
[1643329540310,6.0,90.022,89.944,0.25]
[1643329540509,6.0,90.039,89.944,0.25]
[1643329540709,6.0,90.039,89.944,2.24105363]
[1643329540908,41.78582543,90.038,89.945,40.82928845]
[1643329541108,6.0,90.028,89.945,40.82928845]
[1643329541308,0.25,90.027,89.946,0.25]
[1643329543311,0.25,90.027,89.955,6.0]
[1643329543714,0.25,90.027,89.956,0.25]
[1643329544316,0.25,90.038,89.956,0.25]
[1643329544713,6.0,90.039,89.957,1.99105363]
[1643329544913,6.0,90.039,89.97,13.39]
[1643329545115,6.0,90.049,89.971,39.40291633]
[1643329545313,16.6694,90.1,89.981,6.0]
[1643329545514,23.21743638,90.13,89.991,112.1]
[1643329545715,29.01310285,90.151,89.992,45.1854]
[1643329545918,3.08007899,90.183,90.002,112.1]
[1643329546116,151.2896,90.191,90.01,186.73]
[1643329546117,154.36967899,90.191,90.01,186.73]
[1643329546349,24.20712834,90.182,90.012,6.0]
[1643329546543,24.20712834,90.182,90.011,66.25329229]
[1643329546544,24.20712834,90.182,90.021,118.1]
[1643329546744,24.20712834,90.189,90.05,16.6533]
[1643329546963,24.20712834,90.189,90.06,13.39]
[1643329547244,24.20712834,90.189,90.061,112.35]
[1643329547447,0.1,90.239,90.07,167.34]
[1643329547645,0.1,90.244,90.08,13.39]
[1643329547843,0.1,90.244,90.09,16.6429]
[1643329547844,24.13110531,90.238,90.09,16.6429]
[1643329548048,23.18139448,90.237,90.1,13.39]
[1643329548245,6.0,90.227,90.11,6.0]
[1643329548444,0.1,90.242,90.101,112.35]
[1643329548445,0.1,90.242,90.111,6.0]
[1643329548645,0.1,90.242,90.12,13.39]
[1643329548844,0.1,90.284,90.14,16.6356]
[1643329549046,0.1,90.284,90.15,19.39]
[1643329549246,0.1,90.284,90.151,0.25]
[1643329549444,0.1,90.284,90.151,2.24105363]
[1643329549648,0.1,90.296,90.152,11.79136503]
[1643329549850,24.02973324,90.271,90.153,0.25]
[1643329550044,6.0,90.261,90.162,6.0]
[1643329550252,6.0,90.261,90.17,13.39]
[1643329550446,6.0,90.261,90.163,41.44999612]
[1643329550648,9.20669142,90.26,90.163,41.44999612]
[1643329550850,33.13794611,90.26,90.163,41.44999612]
[1643329551051,3.05669142,90.259,90.163,41.44999612]
[1643329551245,0.25,90.258,90.163,41.44999612]
[1643329551449,6.0,90.249,90.12,16.6413]